[Event "Vetern-SM 50+ 2025"]
[Site "Uppsala, Sweden"]
[Date "2025.07.05"]
[Round "8.8"]
[White "Helin, Mikael"]
[Black "Styf, Josef"]
[Result "0-1"]
[TimeControl "90 min for 40 move + 30 min with an increment of 30 sec starting move 1"]
[WhiteTitle "CM"]
[WhiteFideId "1703838"]
[BlackFideId "1708279"]
[WhiteElo "1929"]
[BlackElo "2024"]

1. e4 {[%clk 01:30:02]} {[%emt 00:00:58]} d6 {[%clk 01:28:36]} {[%emt
00:02:24]} 2. c4 {[%clk 01:30:17]} {[%emt 00:00:16]} Nf6 {[%clk 01:28:47]}
{[%emt 00:00:18]} 3. Nc3 {[%clk 01:30:40]} {[%emt 00:00:07]} e5 {[%clk
01:27:56]} {[%emt 00:01:20]} 4. h3 {[%emt 00:01:12]} c6 {[%clk 01:26:48]}
{[%emt 00:01:03]} 5. Nf3 {[%clk 01:28:50]} {[%emt 00:02:15]} Be7 {[%clk
01:26:14]} {[%emt 00:01:03]} 6. g3 {[%clk 01:28:57]} {[%emt 00:00:22]} O-O
{[%clk 01:26:01]} {[%emt 00:00:43]} 7. Bg2 {[%clk 01:29:19]} {[%emt 00:00:09]}
Nbd7 {[%clk 01:25:09]} {[%emt 00:01:22]} 8. a4 {[%clk 01:28:44]} {[%emt
00:01:06]} a5 {[%clk 01:24:28]} {[%emt 00:01:10]} 9. O-O {[%clk 01:29:06]}
{[%emt 00:00:09]} Re8 {[%clk 01:21:44]} {[%emt 00:03:13]} 10. Rb1 {[%clk
01:23:40]} {[%emt 00:05:55]} Bf8 {[%clk 01:20:24]} {[%emt 00:01:51]} 11. d4
{[%clk 01:21:19]} {[%emt 00:02:51]} exd4 {[%clk 01:19:10]} {[%emt 00:01:44]} 12.
Nxd4 {[%clk 01:21:41]} {[%emt 00:00:09]} Nc5 {[%clk 01:16:37]} {[%emt
00:03:02]} 13. Re1 {[%clk 01:17:41]} {[%emt 00:04:30]} Nfd7 {[%clk 01:15:10]}
{[%emt 00:01:57]} 14. f4 {[%clk 01:15:00]} {[%emt 00:03:10]} g6 {[%clk
01:12:27]} {[%emt 00:03:12]} 15. Kh2 {[%clk 01:12:27]} {[%emt 00:03:04]} Qf6
{[%clk 01:06:09]} {[%emt 00:06:48]} 16. Be3 {[%clk 00:57:29]} {[%emt 00:15:29]}
h5 {[%clk 01:04:02]} {[%emt 00:02:37]} 17. Nf3 {[%clk 00:54:56]} {[%emt
00:03:03]} Nb6 {[%clk 00:55:22]} {[%emt 00:09:09]} 18. Bd4 {[%clk 00:54:14]}
{[%emt 00:01:13]} Qd8 {[%clk 00:54:50]} {[%emt 00:01:02]} 19. b3 {[%clk
00:54:04]} {[%emt 00:00:41]} Ne6 {[%clk 00:49:42]} {[%emt 00:05:37]} 20. Be3
{[%clk 00:52:09]} {[%emt 00:02:24]} Nd7 {[%clk 00:47:30]} {[%emt 00:02:42]} 21.
f5 {[%clk 00:46:44]} {[%emt 00:05:55]} Nec5 {[%clk 00:46:36]} {[%emt 00:01:24]}
22. fxg6 {[%clk 00:42:57]} {[%emt 00:04:19]} fxg6 {[%clk 00:46:51]} {[%emt
00:00:14]} 23. Nh4 {[%clk 00:40:50]} {[%emt 00:02:37]} Ne5 {[%clk 00:45:53]}
{[%emt 00:01:27]} 24. Rf1 {[%clk 00:34:23]} {[%emt 00:06:57]} Bg4 {[%clk
00:41:19]} {[%emt 00:05:04]} 25. Qd2 {[%clk 00:32:24]} {[%emt 00:02:26]} Be6
{[%clk 00:40:08]} {[%emt 00:01:44]} 26. Qe2 {[%clk 00:28:55]} {[%emt 00:03:58]}
Bg7 {[%clk 00:34:04]} {[%emt 00:06:36]} 27. Nf5 {[%clk 00:26:38]} {[%emt
00:02:47]} gxf5 {[%clk 00:25:36]} {[%emt 00:08:58]} 28. exf5 {[%clk 00:23:21]}
{[%emt 00:03:48]} Bf7 {[%clk 00:25:21]} {[%emt 00:00:43]} 29. Qd2 {[%clk
00:19:19]} {[%emt 00:04:31]} Ned3 {[%clk 00:21:28]} {[%emt 00:04:24]} 30. Bh6
{[%clk 00:15:55]} {[%emt 00:03:54]} Qf6 {[%clk 00:20:06]} {[%emt 00:01:52]} 31.
Bxg7 {[%clk 00:16:22]} {[%emt 00:00:04]} Kxg7 {[%clk 00:20:09]} {[%emt
00:00:27]} 32. Rf3 {[%clk 00:15:55]} {[%emt 00:00:57]} Ne5 {[%clk 00:16:27]}
{[%emt 00:04:12]} 33. Rf4 {[%clk 00:14:30]} {[%emt 00:01:54]} Rad8 {[%clk
00:12:51]} {[%emt 00:04:08]} 34. Ne2 {[%clk 00:07:52]} {[%emt 00:07:07]} Ned3
{[%clk 00:09:56]} {[%emt 00:03:24]} 35. Rf3 {[%clk 00:06:56]} {[%emt 00:01:24]}
d5 {[%clk 00:08:12]} {[%emt 00:02:16]} 36. Nf4 {[%clk 00:03:49]} {[%emt
00:03:38]} dxc4 {[%clk 00:07:01]} {[%emt 00:01:41]} 37. Ne6+ {[%clk 00:03:27]}
{[%emt 00:00:52]} Bxe6 {[%clk 00:06:17]} {[%emt 00:01:13]} 38. fxe6 {[%clk
00:03:38]} {[%emt 00:00:20]} Qxe6 {[%clk 00:04:17]} {[%emt 00:02:30]} 39. Rbf1
{[%clk 00:04:07]} {[%emt 00:00:01]} Ne5 {[%clk 00:02:24]} {[%emt 00:02:22]} 40.
Qc3 {[%clk 00:03:40]} {[%emt 00:00:57]} Rf8 {[%clk 00:01:31]} {[%emt 00:01:24]}
41. Rxf8 {[%clk 00:24:21]} {[%emt 00:09:49]} Rxf8 {[%clk 00:31:46]} {[%emt
00:00:14]} 42. Rxf8 {[%clk 00:24:35]} {[%emt 00:00:17]} Kxf8 {[%clk 00:32:09]}
{[%emt 00:00:07]} 43. Qxa5 {[%clk 00:25:02]} {[%emt 00:00:03]} Qd6 {[%clk
00:27:18]} {[%emt 00:05:20]} 44. bxc4 {[%clk 00:23:33]} {[%emt 00:01:59]} h4
{[%clk 00:26:01]} {[%emt 00:01:47]} 45. Qe1 {[%clk 00:21:37]} {[%emt 00:02:24]}
Nf7 {[%clk 00:24:20]} {[%emt 00:02:13]} 46. a5 {[%clk 00:20:45]} {[%emt
00:01:23]} Qxg3+ {[%clk 00:24:07]} {[%emt 00:00:42]} 47. Qxg3 {[%clk 00:20:59]}
{[%emt 00:00:16]} hxg3+ {[%clk 00:24:33]} {[%emt 00:00:05]} 48. Kxg3 {[%clk
00:21:04]} {[%emt 00:00:24]} Ne5 {[%clk 00:24:45]} {[%emt 00:00:18]} 49. Bf1
{[%clk 00:20:57]} {[%emt 00:00:35]} Ke7 {[%clk 00:21:15]} {[%emt 00:04:02]} 50.
Kf4 {[%clk 00:20:52]} {[%emt 00:00:34]} Kf6 {[%clk 00:21:08]} {[%emt 00:00:38]}
51. Ke3 {[%clk 00:20:51]} {[%emt 00:00:32]} Nb3 {[%clk 00:19:31]} {[%emt
00:02:07]} 52. a6 {[%clk 00:18:16]} {[%emt 00:03:05]} bxa6 {[%clk 00:19:56]}
{[%emt 00:00:05]} 53. c5 {[%clk 00:13:17]} {[%emt 00:05:29]} a5 {[%clk
00:18:58]} {[%emt 00:01:26]} 54. Be2 {[%clk 00:07:54]} {[%emt 00:05:53]} Nxc5
{[%clk 00:17:22]} {[%emt 00:02:08]} 55. Kd4 {[%clk 00:08:13]} {[%emt 00:00:10]}
Ne6+ {[%clk 00:16:17]} {[%emt 00:01:35]} 56. Kc3 {[%clk 00:08:22]} {[%emt
00:00:21]} Nf4 {[%clk 00:13:37]} {[%emt 00:03:11]} 57. Bf1 {[%clk 00:08:30]}
{[%emt 00:00:22]} Nd5+ {[%clk 00:11:02]} {[%emt 00:03:05]} 58. Kb3 {[%clk
00:08:42]} {[%emt 00:00:17]} Nb6 {[%clk 00:11:07]} {[%emt 00:00:25]} 59. Be2
{[%clk 00:08:29]} {[%emt 00:00:41]} Kg5 {[%clk 00:11:02]} {[%emt 00:00:39]} 60.
Kc3 {[%clk 00:08:10]} {[%emt 00:00:49]} c5 {[%clk 00:09:46]} {[%emt 00:01:45]}
61. Kd2 {[%clk 00:06:37]} {[%emt 00:02:02]} Kh4 {[%clk 00:09:31]} {[%emt
00:00:45]} 62. Bf1 {[%clk 00:07:05]} {[%emt 00:00:03]} Kg3 {[%clk 00:08:20]}
{[%emt 00:01:41]} 63. Ke3 {[%clk 00:05:25]} {[%emt 00:02:09]} Nbc4+ {[%clk
00:06:59]} {[%emt 00:01:52]} 64. Ke2 {[%clk 00:02:54]} {[%emt 00:03:01]} a4
{[%clk 00:06:51]} {[%emt 00:00:38]} 0-1

[Event "Vetern-SM 50+ 2025"]
[Site "Uppsala, Sweden"]
[Date "2025.07.06"]
[Round "9.1"]
[White "Vernersson, Per"]
[Black "Bergfalk, Jonas"]
[Result "1-0"]
[TimeControl "90 min for 40 move + 30 min with an increment of 30 sec starting move 1"]
[WhiteFideId "1700863"]
[BlackFideId "1703986"]
[WhiteElo "2258"]
[BlackElo "2030"]

1. d4 {[%clk 01:30:44]} {[%emt 00:00:15]} Nf6 {[%clk 01:22:45]} {[%emt
00:08:16]} 2. c4 {[%clk 01:31:01]} {[%emt 00:00:13]} g6 {[%clk 01:23:03]}
{[%emt 00:00:12]} 3. Nc3 {[%clk 01:31:23]} {[%emt 00:00:08]} d5 {[%clk
01:23:26]} {[%emt 00:00:06]} 4. Bf4 {[%clk 01:30:26]} {[%emt 00:01:27]} Bg7
{[%clk 01:23:33]} {[%emt 00:00:23]} 5. e3 {[%clk 01:30:42]} {[%emt 00:00:15]}
O-O {[%clk 01:23:46]} {[%emt 00:00:16]} 6. cxd5 {[%clk 01:29:42]} {[%emt
00:01:30]} Nxd5 {[%clk 01:21:56]} {[%emt 00:02:20]} 7. Nxd5 {[%clk 01:29:59]}
{[%emt 00:00:14]} Qxd5 {[%clk 01:22:15]} {[%emt 00:00:10]} 8. Bxc7 {[%clk
01:30:21]} {[%emt 00:00:09]} Nc6 {[%clk 01:22:32]} {[%emt 00:00:12]} 9. Ne2
{[%clk 01:30:23]} {[%emt 00:00:28]} e5 {[%clk 01:17:35]} {[%emt 00:05:27]} 10.
dxe5 {[%clk 01:29:17]} {[%emt 00:01:37]} Qxd1+ {[%clk 01:17:54]} {[%emt
00:00:11]} 11. Rxd1 {[%clk 01:29:39]} {[%emt 00:00:07]} Nxe5 {[%clk 01:18:10]}
{[%emt 00:00:14]} 12. Nd4 {[%clk 01:29:44]} {[%emt 00:00:26]} Nc6 {[%clk
01:17:57]} {[%emt 00:00:42]} 13. Nxc6 {[%clk 01:05:30]} {[%emt 00:24:44]} bxc6
{[%clk 01:18:19]} {[%emt 00:00:09]} 14. Rd2 {[%clk 01:05:49]} {[%emt 00:00:10]}
Be6 {[%clk 01:17:36]} {[%emt 00:01:13]} 15. Ba6 {[%clk 01:06:09]} {[%emt
00:00:11]} Bxa2 {[%clk 01:09:28]} {[%emt 00:08:37]} 16. O-O {[%clk 01:05:36]}
{[%emt 00:01:03]} Be6 {[%clk 01:08:53]} {[%emt 00:01:05]} 17. Bb7 {[%clk
01:05:41]} {[%emt 00:00:25]} Rab8 {[%clk 01:09:08]} {[%emt 00:00:16]} 18. Bxb8
{[%clk 01:05:54]} {[%emt 00:00:17]} Rxb8 {[%clk 01:09:31]} {[%emt 00:00:06]} 19.
Bxc6 {[%clk 01:06:08]} {[%emt 00:00:17]} Rxb2 {[%clk 01:09:43]} {[%emt
00:00:18]} 20. Rxb2 {[%clk 01:06:17]} {[%emt 00:00:21]} Bxb2 {[%clk 01:10:03]}
{[%emt 00:00:10]} 21. Rb1 {[%clk 01:06:20]} {[%emt 00:00:27]} Bc3 {[%clk
01:10:06]} {[%emt 00:00:27]} 22. e4 {[%clk 01:06:09]} {[%emt 00:00:40]} Kg7
{[%clk 01:09:06]} {[%emt 00:01:30]} 23. Rb7 {[%clk 01:06:09]} {[%emt 00:00:31]}
a5 {[%clk 01:07:54]} {[%emt 00:01:42]} 24. Bd5 {[%clk 01:06:27]} {[%emt
00:00:11]} Kf6 {[%clk 01:08:17]} {[%emt 00:00:08]} 25. Bxe6 {[%clk 01:06:44]}
{[%emt 00:00:13]} Kxe6 {[%clk 01:08:39]} {[%emt 00:00:08]} 26. f4 {[%clk
01:06:59]} {[%emt 00:00:15]} 1-0

[Event "Vetern-SM 50+ 2025"]
[Site "Uppsala, Sweden"]
[Date "2025.07.06"]
[Round "9.2"]
[White "Styf, Josef"]
[Black "Gamback, Bjorn"]
[Result "1/2-1/2"]
[TimeControl "90 min for 40 move + 30 min with an increment of 30 sec starting move 1"]
[BlackTitle "CM"]
[WhiteFideId "1708279"]
[BlackFideId "1703161"]
[WhiteElo "2024"]
[BlackElo "1996"]

1. d4 {[%clk 01:29:54]} {[%emt 00:01:04]} Nf6 {[%clk 01:30:49]} {[%emt
00:00:11]} 2. Nf3 {[%clk 01:29:44]} {[%emt 00:00:41]} e6 {[%clk 01:31:01]}
{[%emt 00:00:18]} 3. e3 {[%clk 01:29:02]} {[%emt 00:01:12]} c5 {[%clk
01:31:00]} {[%emt 00:00:31]} 4. Bd3 {[%clk 01:29:09]} {[%emt 00:00:23]} b6
{[%clk 01:30:45]} {[%emt 00:00:46]} 5. Qe2 {[%clk 01:29:17]} {[%emt 00:00:20]}
Bb7 {[%clk 01:30:49]} {[%emt 00:00:27]} 6. Nbd2 {[%clk 01:28:26]} {[%emt
00:01:21]} cxd4 {[%clk 01:30:38]} {[%emt 00:00:41]} 7. exd4 {[%clk 01:28:26]}
{[%emt 00:00:30]} Be7 {[%clk 01:30:14]} {[%emt 00:00:54]} 8. c3 {[%clk
01:26:52]} {[%emt 00:02:03]} d6 {[%clk 01:29:32]} {[%emt 00:01:13]} 9. O-O
{[%clk 01:26:50]} {[%emt 00:00:32]} Nbd7 {[%clk 01:29:32]} {[%emt 00:00:30]} 10.
a4 {[%clk 01:26:06]} {[%emt 00:01:14]} a6 {[%clk 01:29:26]} {[%emt 00:00:37]}
11. Re1 {[%clk 01:22:46]} {[%emt 00:03:49]} O-O {[%clk 01:27:33]} {[%emt
00:02:23]} 12. Nf1 {[%clk 01:17:25]} {[%emt 00:05:51]} Re8 {[%clk 01:25:57]}
{[%emt 00:02:05]} 13. Bg5 {[%clk 01:14:09]} {[%emt 00:03:46]} h6 {[%clk
01:23:16]} {[%emt 00:03:12]} 14. Bh4 {[%clk 01:10:22]} {[%emt 00:04:16]} Nh5
{[%clk 01:20:01]} {[%emt 00:03:46]} 15. Bxe7 {[%clk 01:05:53]} {[%emt
00:04:59]} Qxe7 {[%clk 01:18:25]} {[%emt 00:02:06]} 16. g3 {[%clk 00:59:35]}
{[%emt 00:06:47]} Nhf6 {[%clk 01:14:28]} {[%emt 00:04:28]} 17. N1d2 {[%clk
00:57:36]} {[%emt 00:02:29]} Qd8 {[%clk 01:11:40]} {[%emt 00:03:18]} 18. Ne4
{[%clk 00:44:52]} {[%emt 00:13:14]} Nxe4 {[%clk 01:08:30]} {[%emt 00:03:39]} 19.
Bxe4 {[%clk 00:45:15]} {[%emt 00:00:07]} Bxe4 {[%clk 01:08:31]} {[%emt
00:00:29]} 20. Qxe4 {[%clk 00:45:39]} {[%emt 00:00:06]} Qc7 {[%clk 01:08:07]}
{[%emt 00:00:54]} 1/2-1/2

[Event "Vetern-SM 50+ 2025"]
[Site "Uppsala, Sweden"]
[Date "2025.07.06"]
[Round "9.3"]
[White "Olsson, Pether"]
[Black "Johansen, Peter"]
[Result "1-0"]
[TimeControl "90 min for 40 move + 30 min with an increment of 30 sec starting move 1"]
[WhiteFideId "1726820"]
[BlackFideId "1723944"]
[WhiteElo "2160"]
[BlackElo "2104"]

1. d4 {[%clk 01:30:54]} {[%emt 00:00:03]} d5 {[%clk 01:30:32]} {[%emt
00:00:31]} 2. Bf4 {[%clk 01:31:17]} {[%emt 00:00:06]} Nf6 {[%clk 01:28:14]}
{[%emt 00:02:49]} 3. e3 {[%clk 01:31:32]} {[%emt 00:00:11]} Nbd7 {[%clk
01:24:59]} {[%emt 00:03:49]} 4. Nd2 {[%clk 01:29:06]} {[%emt 00:02:53]} e6
{[%clk 01:22:56]} {[%emt 00:02:37]} 5. Bd3 {[%clk 01:25:15]} {[%emt 00:04:19]}
c5 {[%clk 01:18:58]} {[%emt 00:04:28]} 6. c3 {[%clk 01:25:22]} {[%emt
00:00:22]} b6 {[%clk 01:16:05]} {[%emt 00:03:25]} 7. h3 {[%clk 01:01:18]}
{[%emt 00:24:33]} Bb7 {[%clk 01:14:34]} {[%emt 00:02:01]} 8. Ngf3 {[%clk
00:57:38]} {[%emt 00:04:10]} Be7 {[%clk 01:02:31]} {[%emt 00:12:33]} 9. Qb1
{[%clk 00:54:18]} {[%emt 00:03:50]} c4 {[%clk 00:55:38]} {[%emt 00:07:24]} 10.
Bc2 {[%clk 00:54:22]} {[%emt 00:00:25]} b5 {[%clk 00:55:56]} {[%emt 00:00:13]}
11. O-O {[%clk 00:49:56]} {[%emt 00:04:55]} O-O {[%clk 00:52:59]} {[%emt
00:03:27]} 12. Ne5 {[%clk 00:40:50]} {[%emt 00:09:37]} h6 {[%clk 00:50:22]}
{[%emt 00:03:07]} 13. Bh2 {[%clk 00:37:32]} {[%emt 00:03:47]} Nxe5 {[%clk
00:49:22]} {[%emt 00:01:30]} 14. dxe5 {[%clk 00:37:26]} {[%emt 00:00:36]} Nd7
{[%clk 00:49:34]} {[%emt 00:00:19]} 15. Nf3 {[%clk 00:37:15]} {[%emt 00:00:41]}
Qb6 {[%clk 00:47:00]} {[%emt 00:03:04]} 16. Nd4 {[%clk 00:35:44]} {[%emt
00:02:00]} f5 {[%clk 00:39:26]} {[%emt 00:08:04]} 17. Qd1 {[%clk 00:33:27]}
{[%emt 00:02:47]} Nc5 {[%clk 00:38:55]} {[%emt 00:01:02]} 18. Qh5 {[%clk
00:33:24]} {[%emt 00:00:32]} Bc6 {[%clk 00:39:04]} {[%emt 00:00:21]} 19. Qe2
{[%clk 00:27:59]} {[%emt 00:05:54]} Be8 {[%clk 00:37:31]} {[%emt 00:02:04]} 20.
g4 {[%clk 00:28:06]} {[%emt 00:00:24]} g6 {[%clk 00:36:20]} {[%emt 00:01:42]}
21. Kh1 {[%clk 00:28:11]} {[%emt 00:00:24]} Kh7 {[%clk 00:33:57]} {[%emt
00:02:53]} 22. Rg1 {[%clk 00:23:53]} {[%emt 00:04:47]} b4 {[%clk 00:32:26]}
{[%emt 00:02:02]} 23. cxb4 {[%clk 00:15:33]} {[%emt 00:08:50]} Qxb4 {[%clk
00:31:48]} {[%emt 00:01:08]} 24. Rab1 {[%clk 00:15:56]} {[%emt 00:00:07]} Ba4
{[%clk 00:24:54]} {[%emt 00:07:24]} 25. b3 {[%clk 00:13:55]} {[%emt 00:02:31]}
cxb3 {[%clk 00:25:13]} {[%emt 00:00:10]} 26. axb3 {[%clk 00:14:06]} {[%emt
00:00:19]} Bd7 {[%clk 00:25:15]} {[%emt 00:00:28]} 27. f3 {[%clk 00:13:31]}
{[%emt 00:01:06]} a6 {[%clk 00:23:50]} {[%emt 00:01:56]} 28. Bg3 {[%clk
00:13:36]} {[%emt 00:00:23]} a5 {[%clk 00:21:22]} {[%emt 00:02:58]} 29. Be1
{[%clk 00:13:35]} {[%emt 00:00:31]} Qb8 {[%clk 00:21:48]} {[%emt 00:00:04]} 30.
Qh2 {[%clk 00:11:37]} {[%emt 00:02:27]} Qe8 {[%clk 00:19:43]} {[%emt 00:02:36]}
31. h4 {[%clk 00:11:41]} {[%emt 00:00:26]} a4 {[%clk 00:17:21]} {[%emt
00:02:53]} 32. b4 {[%clk 00:11:47]} {[%emt 00:00:24]} Nb7 {[%clk 00:17:40]}
{[%emt 00:00:10]} 33. h5 {[%clk 00:12:03]} {[%emt 00:00:14]} g5 {[%clk
00:12:30]} {[%emt 00:05:41]} 34. f4 {[%clk 00:08:26]} {[%emt 00:04:06]} Qf7
{[%clk 00:10:16]} {[%emt 00:02:44]} 35. Rf1 {[%clk 00:07:32]} {[%emt 00:01:24]}
Kh8 {[%clk 00:08:41]} {[%emt 00:02:06]} 36. gxf5 {[%clk 00:07:01]} {[%emt
00:01:00]} exf5 {[%clk 00:09:07]} {[%emt 00:00:05]} 37. fxg5 {[%clk 00:06:31]}
{[%emt 00:00:59]} Bxg5 {[%clk 00:09:09]} {[%emt 00:00:28]} 38. Nxf5 {[%clk
00:06:12]} {[%emt 00:00:49]} Bb5 {[%clk 00:06:37]} {[%emt 00:03:02]} 39. Bc3
{[%clk 00:05:55]} {[%emt 00:00:47]} Qc7 {[%clk 00:06:17]} {[%emt 00:00:50]} 40.
Bd4 {[%clk 00:06:15]} {[%emt 00:00:10]} Rac8 {[%clk 00:04:41]} {[%emt
00:02:07]} 41. e6+ {[%clk 00:24:25]} {[%emt 00:12:19]} Kg8 {[%clk 00:35:05]}
{[%emt 00:00:06]} 42. Nxh6+ {[%clk 00:24:28]} {[%emt 00:00:28]} Bxh6 {[%clk
00:35:17]} {[%emt 00:00:17]} 43. Rg1+ {[%clk 00:24:52]} {[%emt 00:00:05]} Bg7
{[%clk 00:34:10]} {[%emt 00:01:38]} 44. Rxg7+ {[%clk 00:25:14]} {[%emt
00:00:08]} Qxg7 {[%clk 00:34:36]} {[%emt 00:00:04]} 45. Bxg7 {[%clk 00:25:34]}
{[%emt 00:00:10]} Kxg7 {[%clk 00:34:53]} {[%emt 00:00:13]} 46. Qe5+ {[%clk
00:24:52]} {[%emt 00:01:11]} Kh6 {[%clk 00:35:12]} {[%emt 00:00:13]} 47. Rg1
{[%clk 00:25:03]} {[%emt 00:00:17]} Rg8 {[%clk 00:35:04]} {[%emt 00:00:39]} 48.
Qf6+ {[%clk 00:25:22]} {[%emt 00:00:11]} 1-0

[Event "Vetern-SM 50+ 2025"]
[Site "Uppsala, Sweden"]
[Date "2025.07.06"]
[Round "9.4"]
[White "Eriksson, Kristian"]
[Black "Persson, Lars"]
[Result "1/2-1/2"]
[TimeControl "90 min for 40 move + 30 min with an increment of 30 sec starting move 1"]
[WhiteFideId "1705172"]
[BlackFideId "1703579"]
[WhiteElo "1998"]
[BlackElo "2041"]

1. e4 {[%clk 01:30:47]} {[%emt 00:00:11]} c5 {[%clk 01:29:10]} {[%emt
00:01:52]} 2. Nf3 {[%clk 01:31:04]} {[%emt 00:00:11]} a6 {[%clk 01:29:33]}
{[%emt 00:00:10]} 3. Nc3 {[%clk 01:30:08]} {[%emt 00:01:25]} d6 {[%clk
01:28:13]} {[%emt 00:01:50]} 4. d4 {[%clk 01:30:13]} {[%emt 00:00:24]} cxd4
{[%clk 01:28:36]} {[%emt 00:00:08]} 5. Nxd4 {[%clk 01:30:37]} {[%emt 00:00:06]}
e5 {[%clk 01:28:51]} {[%emt 00:00:15]} 6. Nf5 {[%clk 01:27:51]} {[%emt
00:03:15]} g6 {[%clk 01:27:20]} {[%emt 00:02:02]} 7. Ne3 {[%clk 01:27:30]}
{[%emt 00:00:50]} Nc6 {[%clk 01:24:03]} {[%emt 00:03:48]} 8. Ned5 {[%clk
01:24:10]} {[%emt 00:03:50]} Bg7 {[%clk 01:16:41]} {[%emt 00:07:52]} 9. Be3
{[%clk 01:20:04]} {[%emt 00:04:35]} Nd4 {[%clk 01:13:47]} {[%emt 00:03:24]} 10.
Bc4 {[%clk 01:15:35]} {[%emt 00:04:58]} b5 {[%clk 01:09:04]} {[%emt 00:05:15]}
11. Bb3 {[%clk 01:14:28]} {[%emt 00:01:37]} Bb7 {[%clk 01:01:42]} {[%emt
00:07:52]} 12. O-O {[%clk 01:12:43]} {[%emt 00:02:15]} Rc8 {[%clk 00:58:04]}
{[%emt 00:04:08]} 13. Qd2 {[%clk 01:03:07]} {[%emt 00:10:05]} Nf6 {[%clk
00:43:56]} {[%emt 00:14:38]} 14. Bxd4 {[%clk 00:47:51]} {[%emt 00:15:47]} exd4
{[%clk 00:21:04]} {[%emt 00:23:22]} 15. Qxd4 {[%clk 00:44:52]} {[%emt
00:03:29]} O-O {[%clk 00:21:06]} {[%emt 00:00:28]} 16. Qd2 {[%clk 00:38:10]}
{[%emt 00:07:10]} Nxd5 {[%clk 00:16:18]} {[%emt 00:05:19]} 17. Nxd5 {[%clk
00:33:24]} {[%emt 00:05:17]} Bxb2 {[%clk 00:13:50]} {[%emt 00:02:58]} 18. Rad1
{[%clk 00:33:09]} {[%emt 00:00:43]} Ba3 {[%clk 00:06:26]} {[%emt 00:07:55]}
1/2-1/2